[Event "14th Danzhou Super GM 2023"]
[Site "Danzhou"]
[Date "2023.11.17"]
[Round "3.2"]
[White "Ma, Qun"]
[Black "Xu, Xiangyu"]
[Result "1/2-1/2"]
[ECO "B33"]
[WhiteElo "2653"]
[BlackElo "2623"]
[Annotator "TA"]
[PlyCount "108"]
[EventDate "2023.11.17"]
[EventCountry "CHN"]
[SourceTitle "playchess.com"]
[Source "ChessBase"]
[SourceQuality "1"]
[TimeControl "2700+10"]

{[%evp 23,108,0,0,0,1,0,0,0,6,0,7,14,12,0,8,0,65,61,58,56,50,62,52,61,89,90,97,97,210,130,185,177,172,174,160,168,248,97,89,70,306,305,279,-53,0,0,0,0,0,0,0,0,0,0,0,0,0,0,0,-198,-208,-298,-274,-195,-35,-35,-35,-43,-42,-41,-41,-41,-43,-43,-43,-43,-44,-44,-41,-52,0,0,0,0,0,0,0]} 1. e4 {[%emt 0:00:09]} c5 {[%emt 0:00:02]} 2. Nf3 {[%emt 0:00:04][%cal Bg1f3,Bf3d4,Bd4b5,Bb5a3,Ba3c2][%mdl 32]} Nc6 {[%emt 0:00:02]} 3. d4 {[%emt 0:00:24]} cxd4 {[%emt 0:00:03]} 4. Nxd4 {[%emt 0:00:03]} Nf6 {[%emt 0:00:02]} 5. Nc3 {[%emt 0:00:04]} e5 {[%emt 0:00:02]} 6. Ndb5 {[%emt 0:00:16]} d6 {[%emt 0:00:01]} 7. Bg5 {[%emt 0:00:06]} a6 {[%emt 0:00:03]} 8. Na3 {[%emt 0:00:11]} b5 {[%emt 0:00:02][%cal Bb7b5,Bb5b4][%mdl 32]} 9. Nd5 {[%emt 0:00:07]} Be7 {[%emt 0:00:02]} 10. Bxf6 {[%emt 0:00:04]} Bxf6 {[%emt 0:00:02]} 11. c4 {[%emt 0:00:26]} b4 {[%emt 0:00:03]} 12. Nc2 {[%emt 0:00:02]} a5 {[%emt 0:00:28]} 13. h4 {[%emt 0:00:47] B33: Sicilian: Pelikan and Sveshnikov Variations.} O-O {[%emt 0:01:28]} 14. g3 {[%emt 0:02:24]} Be6 {[%emt 0:00:05]} 15. Bh3 {[%emt 0:00:06]} Ra7 {[%emt 0:00:24]} 16. Kf1 {[%emt 0:01:45]} Be7 {[%emt 0:12:21]} 17. Kg2 {[%emt 0:00:24] [#]} Qb8 $146 {[%emt 0:00:07]} ({Predecessor:} 17... Qc8 18. Qd3 Bd8 19. Rad1 g6 20. a3 Bxh3+ 21. Rxh3 f5 22. exf5 b3 23. Qxb3 Qxf5 {½-½ Strautins,U (2452)-Shablinsky,M (2439) ICCF izt 05 email 2008}) 18. Qf3 {[%emt 0:13:05]} a4 {[%emt 0:16:20]} 19. b3 {[%emt 0:01:54]} Bxd5 {[%emt 0:00:05]} ({Better is} 19... Bd8 $11) 20. cxd5 $14 {[%emt 0:02:03]} Nd4 {[%emt 0:01:54]} 21. Nxd4 {[%emt 0:00:24]} exd4 {[%emt 0:00:02] Black is weak on the light squares} 22. Rac1 {[%emt 0:00:17]} axb3 {[%emt 0:04:14]} 23. axb3 {[%emt 0:00:07]} (23. Qxb3 Ra3 24. Qc4 Qb6 $11) 23... Qb5 {[%emt 0:00:06]} 24. Rc6 {[%emt 0:09:30]} Ra6 {[%emt 0:04:51]} 25. Rhc1 {[%emt 0:00:55]} Bf6 {[%emt 0:01:00]} (25... d3 $16) 26. R1c4 {[%emt 0:01:27]} Rd8 {[%emt 0:01:52]} (26... h6 $16 27. Bg4 Rd8) 27. Rc7 $18 {[%emt 0:01:54]} Raa8 {[%emt 0:00:47]} 28. g4 {[%emt 0:02:24][%cal Bg3g4,Bg4g5][%mdl 32] Strongly threatening g5.} Rf8 {[%emt 0:00:01]} 29. g5 {[%emt 0:00:07]} Be5 {[%emt 0:00:02]} (29... Bd8 {was worth a try.}) 30. h5 $2 {[%emt 0:01:49]} (30. Re7 $1 $18) 30... Qe8 $16 {[%emt 0:00:02]} 31. Bf5 $1 {[%emt 0:03:13][%cal Of3g4] Black must now prevent Qg4! White is much more active.} (31. Rxb4 Qd8 32. Rbb7 Qxg5+ 33. Qg4 Qh6 $17) 31... g6 $2 {[%emt 0:01:37]} (31... Kh8 $14) 32. hxg6 $1 $18 {[%emt 0:00:12]} hxg6 {[%emt 0:00:03] [#]} 33. Bh3 $2 {[%emt 0:02:56]} (33. Qh3 $1 $18 {[%cal Of5g6] White wants to mate with Bxg6!} Qd8 34. Qh4) 33... Qd8 {[%emt 0:00:12]} (33... Bg7 $15) 34. Qg4 $11 {[%emt 0:00:03]} d3 {[%emt 0:00:03]} 35. Rd7 $1 {[%emt 0:00:22]} Qb6 {[%emt 0:00:12] aiming for ...d2.} 36. Qf3 {[%emt 0:00:09]} d2 $36 {[%emt 0:00:08][%mdl 2048] Black has good play.} 37. Rcc7 {[%emt 0:00:26] Repels Ra7} Rad8 {[%emt 0:02:11]} 38. Re7 {[%emt 0:00:24]} (38. Rxf7 $2 Qxc7 $19) 38... Rde8 {[%emt 0:00:01]} 39. Red7 {[%emt 0:00:21]} (39. Rxf7 $2 Qxc7 40. Rxf8+ Rxf8 $19) (39. Rb7 Qd8 40. Rxe8 Qxe8 $17) 39... Rd8 {[%emt 0:00:16] ...Rxd7 is the strong threat.} 40. Re7 {[%emt 0:00:11]} (40. Rxf7 $2 {perishes.} Qxc7 41. Rf6 Bxf6 42. gxf6 Rxf6 43. Qxf6 d1=Q $19) 40... Rde8 {[%emt 0:00:02] ...Rxe7 would be deadly.} 41. Rb7 {[%emt 0:00:01]} (41. Rxf7 $2 {loses.} Qxc7 42. Rxc7 Rxf3 $19) (41. Red7 $1 $11 {and White stays safe.}) 41... Qd8 $19 {[%emt 0:00:07]} 42. Rxf7 {[%emt 0:00:19]} (42. Rxe8 {was forced.} Qxe8 43. Bg4) 42... Qxg5+ {[%emt 0:00:04]} 43. Bg4 {[%emt 0:00:07] [#]} d1=Q $2 {[%emt 0:00:15]} 44. Rxf8+ $15 {[%emt 0:00:02]} Rxf8 {[%emt 0:00:01]} 45. Qxd1 {[%emt 0:00:02]} Qh4 {[%emt 0:00:02]} 46. Be6+ {[%emt 0:00:32]} Kh8 {[%emt 0:00:01]} 47. Rf7 {[%emt 0:00:08]} (47. Qh1 $2 {leads to mate.} Rxf2+ 48. Kg1 Bh2+) 47... Qh2+ {[%emt 0:00:13]} (47... Qxe4+ $2 48. f3 Rxf7 49. fxe4 $18) 48. Kf1 {[%emt 0:00:01]} Qh1+ {[%emt 0:00:01]} 49. Ke2 {[%emt 0:00:00]} Qxe4+ {[%emt 0:00:03]} 50. Kf1 {[%emt 0:00:08]} Rxf7 {[%emt 0:00:03]} 51. Bxf7 {[%emt 0:00:02]} Bd4 {[%emt 0:00:07]} (51... Qh1+ $15 52. Ke2 Qh5+ {[%mdl 64] Skewer} 53. f3 Kg7) 52. Bxg6 $11 {[%emt 0:00:30][%mdl 64] Deflection. The position is equal.} Qh1+ {[%emt 0:00:17]} 53. Ke2 {[%emt 0:00:01]} Qxd1+ {[%emt 0:00:02]} 54. Kxd1 {[%emt 0:00:01]} Bxf2 {[%emt 0:00:02] What a bad dream for Black. An exciting game.   Weighted Error Value: White=0.25 (precise) /Black=0.27 (precise)} 1/2-1/2

[Event "14th Danzhou Super GM 2023"]
[Site "Danzhou"]
[Date "2023.11.17"]
[Round "3.3"]
[White "Tan, Zhongyi"]
[Black "Jumabayev, Rinat"]
[Result "1-0"]
[ECO "E36"]
[WhiteElo "2513"]
[BlackElo "2588"]
[Annotator "RC"]
[PlyCount "87"]
[EventDate "2023.11.17"]
[EventCountry "CHN"]
[SourceTitle "playchess.com"]
[Source "ChessBase"]
[SourceQuality "1"]
[TimeControl "2700+10"]

1. d4 {[%emt 0:00:06]} Nf6 {[%emt 0:00:05]} 2. c4 {[%emt 0:00:04]} e6 {[%emt 0:00:03]} 3. Nc3 {[%emt 0:00:02]} Bb4 {[%emt 0:00:02]} 4. Qc2 {[%emt 0:00:03]} d5 {[%emt 0:00:28]} 5. Nf3 {[%emt 0:00:38]} O-O {[%emt 0:02:08]} 6. a3 {[%emt 0:00:08]} Bxc3+ {[%emt 0:00:03]} 7. Qxc3 {[%emt 0:00:02]} Nbd7 {[%emt 0:00:20]} 8. Bg5 {[%emt 0:01:55]} h6 {[%emt 0:00:24]} 9. Bh4 {[%emt 0:00:45]} b6 {[%emt 0:00:04]} 10. cxd5 {[%emt 0:02:28]} exd5 {[%emt 0:00:06]} 11. e3 {[%emt 0:00:20]} Bb7 {[%emt 0:00:51]} 12. Bd3 {[%emt 0:00:31]} c5 {[%emt 0:00:58]} 13. O-O {[%emt 0:00:26]} Qc7 {[%emt 0:02:48]} 14. dxc5 {[%emt 0:08:05]} bxc5 {[%emt 0:00:04]} 15. b4 {[%emt 0:00:18]} Ne4 {[%emt 0:07:59]} 16. Bxe4 {[%emt 0:07:03]} dxe4 {[%emt 0:00:02]} 17. Nd4 {[%emt 0:00:15]} Qe5 {[%emt 0:01:32]} 18. bxc5 {[%emt 0:00:04]} Nxc5 {[%emt 0:00:21]} 19. Bg3 {[%emt 0:00:03]} Qd5 {[%emt 0:06:15]} 20. Nb5 {[%emt 0:03:15]} Rad8 {[%emt 0:01:46]} 21. Nc7 {[%emt 0:02:28]} Qf5 {[%emt 0:02:31]} 22. Rab1 {[%emt 0:01:00]} a6 {[%emt 0:04:29]} 23. Be5 {[%emt 0:08:17]} Na4 {[%emt 0:04:49]} 24. Qa1 {[%emt 0:00:07]} f6 {[%emt 0:00:46]} 25. Bd4 {[%emt 0:04:27]} Bc6 {[%emt 0:03:27]} 26. Rfc1 {[%emt 0:00:36]} Bb5 {[%emt 0:00:25]} 27. Qa2+ {[%emt 0:00:11]} Rf7 {[%emt 0:00:23]} 28. Nxb5 {[%emt 0:03:21]} axb5 {[%emt 0:00:04]} 29. Qb3 {[%emt 0:00:02]} Rd5 {[%emt 0:00:30]} 30. Qb4 {[%emt 0:01:03]} Kh7 {[%emt 0:00:27]} 31. Rc6 {[%emt 0:00:03]} Qg6 {[%emt 0:01:47]} 32. Rbc1 {[%emt 0:00:02]} Rg5 {[%emt 0:00:10]} 33. g3 {[%emt 0:00:02]} Qh5 {[%emt 0:00:20]} 34. Qd6 {[%emt 0:00:28]} Qf3 {[%emt 0:03:24]} 35. Qe6 {[%emt 0:00:02]} Rf5 {[%emt 0:00:15]} 36. Rf1 {[%emt 0:00:01]} Kg6 {[%emt 0:00:27]} 37. Qe8 {[%emt 0:00:02]} Qe2 {[%emt 0:00:35]} 38. Qxe4 {[%emt 0:00:48]} h5 {[%emt 0:00:08]} 39. h3 {[%emt 0:00:31]} Qf3 {[%emt 0:00:08]} 40. Qxf3 {[%emt 0:00:04]} Rxf3 {[%emt 0:00:01]} 41. Kg2 {[%emt 0:00:18]} Rf5 {[%emt 0:00:01]} 42. e4 {[%emt 0:00:07]} Rg5 {[%emt 0:00:07]} 43. f4 {[%emt 0:00:12]} Rd7 {[%emt 0:00:01]} 44. Bf2 {[%emt 0:00:11]} 1-0

[Event "14th Danzhou Super GM 2023"]
[Site "Danzhou"]
[Date "2023.11.17"]
[Round "3.4"]
[White "Cheparinov, Ivan"]
[Black "Liu, Yan"]
[Result "1/2-1/2"]
[ECO "C43"]
[WhiteElo "2649"]
[BlackElo "2579"]
[Annotator "TA"]
[PlyCount "70"]
[EventDate "2023.11.17"]
[EventCountry "CHN"]
[SourceTitle "playchess.com"]
[Source "ChessBase"]
[SourceQuality "1"]
[TimeControl "2700+10"]

{[%evp 16,70,6,6,8,0,0,0,0,0,1,0,0,0,6,0,20,18,15,17,16,15,28,20,41,16,28,6,25,0,0,0,6,0,6,6,7,2,1,6,12,0,0,0,0,0,8,8,8,8,8,8,8,0,0,0,15]} 1. e4 {[%emt 0:00:04]} e5 {[%emt 0:00:07]} 2. Nf3 {[%emt 0:00:03]} Nf6 {[%emt 0:00:07]} 3. d4 {[%emt 0:00:17]} Nxe4 {[%emt 0:00:19]} 4. Bd3 {[%emt 0:00:03]} d5 {[%emt 0:00:08]} 5. Nxe5 {[%emt 0:00:03]} Nd7 {[%emt 0:00:13]} 6. Nc3 {[%emt 0:00:02]} Nxc3 {[%emt 0:01:09]} 7. bxc3 {[%emt 0:00:02]} Bd6 {[%emt 0:00:05]} 8. O-O {[%emt 0:00:13]} O-O {[%emt 0:00:28]} 9. Re1 {[%emt 0:00:16]} c5 $1 {[%emt 0:00:45] 9...c5 scores better than 9...Bxe5. C43: Petroff Defence: 3 d4.} 10. Qf3 {[%emt 0:00:11]} c4 {[%emt 0:01:16]} 11. Bf5 {[%emt 0:00:05]} (11. Qxd5 Nb6 12. Bxh7+ Kxh7 $19) 11... Nxe5 {[%emt 0:03:46]} 12. dxe5 {[%emt 0:00:02]} Re8 {[%emt 0:01:49]} 13. Bxc8 {[%emt 0:00:26]} (13. Qxd5 $2 {perishes.} Bxf5 14. Bf4 Ba3 15. Qxc4 Bb2 $19) 13... Rxc8 {[%emt 0:00:26]} 14. Bg5 {[%emt 0:00:06]} Be7 {[%emt 0:00:32] [#]} 15. e6 $1 {[%emt 0:01:45]} fxe6 {[%emt 0:00:17] [#]} (15... f6 $5 {[%cal Rf6g5]} 16. Bf4 Bf8 $11) 16. Rxe6 $1 {[%emt 0:00:02] Black must now prevent Rae1.} Bxg5 {[%emt 0:00:09]} 17. Rxe8+ {[%emt 0:00:02]} Qxe8 {[%emt 0:00:05]} 18. Qxd5+ {[%emt 0:00:01]} Kh8 {[%emt 0:00:09] Hoping for ...Qe7.} 19. Qxg5 $11 {[%emt 0:00:03][%mdl 4096] Endgame KQR-KQR} Qe2 {[%emt 0:01:20]} 20. Qf5 {[%emt 0:03:57]} Rd8 {[%emt 0:06:12] [#] ( -> ...Rd1+)} 21. h4 $146 {[%emt 0:00:55]} ({Predecessor:} 21. h3 h6 22. a4 b6 23. Qg4 Qxg4 24. hxg4 Rd2 25. Rc1 Kg8 26. Kf1 Kf7 27. Ke1 {½-½ Nepomniachtchi,I (2773)-Dominguez Perez,L (2753) Bucharest Superbet Classic 2nd 2022 (3)}) 21... h6 {[%emt 0:00:17]} 22. Rb1 {[%emt 0:04:50]} b6 {[%emt 0:01:05] The position is equal.} 23. a4 {[%emt 0:00:37]} Rd2 {[%emt 0:04:52]} 24. Rc1 {[%emt 0:04:12]} Kg8 {[%emt 0:04:08]} 25. g3 {[%emt 0:07:10]} Rd6 {[%emt 0:00:25]} 26. Qf4 {[%emt 0:00:15]} Rf6 {[%emt 0:08:56]} 27. Qd4 {[%emt 0:00:17]} Rf3 {[%emt 0:02:00]} 28. a5 {[%emt 0:04:40]} bxa5 {[%emt 0:01:08]} 29. Rb1 {[%emt 0:00:02] Threatens to win with Rb8+.} Rf7 {[%emt 0:01:22]} 30. Ra1 {[%emt 0:03:31]} Qxc2 {[%emt 0:00:49]} 31. Rxa5 {[%emt 0:00:13]} Qb1+ {[%emt 0:00:26]} 32. Kg2 {[%emt 0:00:28]} Qb7+ $1 {[%emt 0:00:11]} 33. Qd5 {[%emt 0:00:05]} Qb2 $1 {[%emt 0:01:05][%csl LRc3,LRf2]} 34. Qd4 {[%emt 0:00:03][%cal Oa5e5]} (34. Rxa7 $2 {is the wrong capture.} Qxf2+ 35. Kh3 Qxa7 $19) 34... Qb7+ {[%emt 0:00:03]} 35. Qd5 {[%emt 0:00:02]} Qb2 $1 {[%emt 0:00:01][%csl LRc3,LRf2] An interesting draw.   Weighted Error Value: White=0.05 (flawless) /Black=0.03 (flawless)} 1/2-1/2

[Event "14th Danzhou Super GM 2023"]
[Site "Danzhou"]
[Date "2023.11.17"]
[Round "4.1"]
[White "Bu, Xiangzhi"]
[Black "Liu, Yan"]
[Result "1/2-1/2"]
[ECO "D00"]
[WhiteElo "2677"]
[BlackElo "2579"]
[Annotator "TA"]
[PlyCount "62"]
[EventDate "2023.11.17"]
[EventCountry "CHN"]
[SourceTitle "playchess.com"]
[Source "ChessBase"]
[SourceQuality "1"]
[TimeControl "2700+10"]

{[%evp 9,62,-7,31,23,33,0,0,-7,0,-28,-31,-29,-35,-25,-25,-24,-25,-66,-69,-80,-70,-79,-72,-70,-84,-95,-55,-112,-119,-104,-120,-88,-75,-84,-61,-70,-54,-49,0,-86,-57,-64,-59,-60,-50,-50,0,0,0,-50,-54,-52,-38,-45,-12]} 1. d4 {[%emt 0:00:04]} Nf6 {[%emt 0:00:04]} 2. Bg5 {[%emt 0:00:05]} d5 {[%emt 0:00:05]} 3. Nd2 {[%emt 0:00:05]} c5 {[%emt 0:00:12]} 4. Bxf6 {[%emt 0:01:04]} gxf6 {[%emt 0:00:06]} 5. dxc5 {[%emt 0:00:06]} e6 {[%emt 0:02:19][%cal Ob8a6]} 6. e4 {[%emt 0:00:11] D00: 1 d4 d5: Unusual lines.} Nc6 {[%emt 0:04:31] [#]} 7. Ngf3 $146 {[%emt 0:02:08]} ({Predecessor:} 7. Ne2 f5 8. exf5 Bxc5 9. Nb3 Bb6 10. Nf4 Qf6 11. Be2 Qxf5 12. Qd2 e5 13. Nd3 {0-1 Matuszewski,M (2508)-Harikrishna,P (2732) POL-chT Ekstraliga 2020 (3.2)}) 7... Bxc5 {[%emt 0:01:00] next ...Qb6 is good for Black.} 8. exd5 {[%emt 0:06:28] The position is equal.} Qxd5 {[%emt 0:00:07]} 9. Nc4 {[%emt 0:00:52]} Qxd1+ {[%emt 0:03:27]} 10. Rxd1 {[%emt 0:00:01]} Ke7 {[%emt 0:02:02]} 11. c3 {[%emt 0:00:02]} b5 {[%emt 0:00:14]} (11... a6 {looks sharper.} 12. b4 Ba7 13. a4 Rd8) 12. Ncd2 {[%emt 0:00:27]} a6 {[%emt 0:00:44]} (12... b4 {is interesting.} 13. Ne4 Bb6 14. Bb5 Ne5) 13. b4 {[%emt 0:01:45]} Bb6 {[%emt 0:02:21]} 14. a4 {[%emt 0:02:42]} bxa4 {[%emt 0:01:40]} 15. Ra1 {[%emt 0:00:12]} Bd7 {[%emt 0:02:50]} 16. Rxa4 {[%emt 0:00:04]} Ne5 {[%emt 0:00:12]} 17. Rxa6 {[%emt 0:00:44]} Nxf3+ {[%emt 0:00:55]} 18. Nxf3 {[%emt 0:14:43]} ({Better is} 18. gxf3 $15 Rxa6 19. Bxa6) 18... Rxa6 $17 {[%emt 0:00:50]} 19. Bxa6 {[%emt 0:00:02]} Ra8 {[%emt 0:00:03]} 20. Be2 {[%emt 0:00:32]} Ra1+ {[%emt 0:03:17][%mdl 1024] Black has strong compensation.} 21. Bd1 {[%emt 0:00:01]} Ba4 {[%emt 0:02:04]} 22. Kd2 {[%emt 0:00:10]} Ra2+ {[%emt 0:00:10]} 23. Kc1 $1 {[%emt 0:00:10] [#] Kb1 is the strong threat.} ({Not} 23. Kd3 $2 Bb5+ 24. c4 Ra3+ 25. Kc2 Bxc4 $19) 23... Ra1+ {[%emt 0:00:10]} (23... Bxf2 $2 24. Kb1 Bxd1 25. Kxa2 $18) 24. Kd2 {[%emt 0:00:10]} Bxf2 {[%emt 0:00:10]} 25. Rf1 {[%emt 0:00:10]} Ba7 {[%emt 0:00:10] White must now prevent ...Ra2+. A strong pair of Bishops.} 26. c4 $1 {[%emt 0:00:10]} Rb1 {[%emt 0:00:10]} 27. b5 {[%emt 0:00:10]} Bc5 {[%emt 0:00:10]} (27... Bb3 $15 28. Be2 Rb2+ {[%mdl 64] Deflection} 29. Kc3 Rxe2 30. Kxb3 Rxg2) 28. Ke2 $11 {[%emt 0:04:41]} Rb2+ {[%emt 0:12:50]} 29. Nd2 {[%emt 0:00:10]} ({White should play} 29. Kd3 $11 Bxd1 30. Rxd1) 29... Bb4 {[%emt 0:00:10] Black is slightly better.} 30. Bxa4 {[%emt 0:00:10] [#] And now Rd1 would win.} Rxd2+ {[%emt 0:00:10]} 31. Kf3 {[%emt 0:00:10]} Bc5 {[%emt 0:00:10] Weighted Error Value: White=0.09 (flawless) /Black=0.12 (very precise)} 1/2-1/2

[Event "14th Danzhou Super GM 2023"]
[Site "Danzhou"]
[Date "2023.11.17"]
[Round "4.2"]
[White "Jumabayev, Rinat"]
[Black "Cheparinov, Ivan"]
[Result "1-0"]
[ECO "A13"]
[WhiteElo "2588"]
[BlackElo "2649"]
[Annotator "TA"]
[PlyCount "69"]
[EventDate "2023.11.17"]
[EventCountry "CHN"]
[SourceTitle "playchess.com"]
[Source "ChessBase"]
[SourceQuality "1"]
[TimeControl "2700+10"]

{[%evp 14,69,20,14,16,0,28,0,20,8,3,6,13,-3,2,0,61,63,59,73,75,53,192,182,186,179,182,183,241,273,243,210,283,201,352,396,383,332,480,429,602,616,608,566,728,725,432,712,1100,1089,1143,1129,1269,1262,1295,1281,1617,1545]} 1. Nf3 {[%emt 0:00:01]} d5 {[%emt 0:00:02]} 2. g3 {[%emt 0:00:04]} Nf6 {[%emt 0:00:09]} 3. Bg2 {[%emt 0:00:02]} c5 {[%emt 0:00:04]} 4. O-O {[%emt 0:00:07]} e6 {[%emt 0:00:02]} 5. c4 {[%emt 0:00:11]} d4 {[%emt 0:00:15]} 6. e3 {[%emt 0:00:02]} Nc6 {[%emt 0:00:04]} 7. exd4 {[%emt 0:00:02]} cxd4 {[%emt 0:00:02]} 8. d3 {[%emt 0:00:01]} Bd6 {[%emt 0:01:37] A13: English Opening: 1...e6.} 9. Re1 {[%emt 0:00:12]} O-O {[%emt 0:00:27]} 10. Na3 {[%emt 0:00:10]} Re8 {[%emt 0:01:17] The position is equal.} 11. Nc2 {[%emt 0:00:22]} e5 {[%emt 0:00:04] [#]} 12. b4 $1 {[%emt 0:00:12]} a6 {[%emt 0:01:49]} (12... Nxb4 13. Nxb4 Bxb4 14. Rxe5 $14) (12... Bg4 13. b5) 13. Rb1 {[%emt 0:00:23]} h6 {[%emt 0:04:54]} 14. a4 {[%emt 0:00:26] [#]} Bc7 $146 {[%emt 0:03:00]} (14... Bg4 $11) ({Predecessor:} 14... Bg4 15. h3 Bh5 16. g4 Bg6 17. Nh4 Ne4 18. Bxe4 Qxh4 19. Qf3 Rad8 20. b5 axb5 21. axb5 {1-0 Tomilova,E (2298)-Kovanova,B (2373) RUS-ch Higher League (Women) 67th 2017 (3)}) 15. b5 $14 {[%emt 0:04:22]} Na5 {[%emt 0:00:06]} 16. c5 {[%emt 0:04:21]} axb5 {[%emt 0:01:23]} 17. axb5 {[%emt 0:00:02]} Nd5 {[%emt 0:00:15] [#] A mistake that costs the game.} (17... Bg4 $14) 18. Bd2 $1 $18 {[%emt 0:00:06]} Nc3 {[%emt 0:09:08]} 19. Bxc3 {[%emt 0:00:10]} dxc3 {[%emt 0:00:01]} 20. Re3 {[%emt 0:01:26]} Qd5 {[%emt 0:04:52]} (20... Bd7 {was worth a try.} 21. Qe1 Rc8) 21. d4 {[%emt 0:04:08]} e4 {[%emt 0:00:02]} 22. Nfe1 {[%emt 0:00:35]} f5 {[%emt 0:02:19]} 23. Rxc3 {[%emt 0:00:37] Black must now prevent b6.} f4 $2 {[%emt 0:00:59]} (23... b6 24. f3 Qf7) 24. b6 {[%emt 0:04:58]} Bb8 {[%emt 0:03:19]} 25. Ra1 {[%emt 0:00:09] Threatens to win with Rca3.} Qf5 {[%emt 0:00:37]} (25... h5 $142 26. Rca3 Bg4) 26. Rca3 {[%emt 0:00:41] White is clearly winning.} Rf8 {[%emt 0:01:02]} (26... h5 $142 27. Rxa5 Rxa5) 27. Rxa5 {[%emt 0:04:17]} Rxa5 {[%emt 0:00:01]} 28. Rxa5 {[%emt 0:00:01]} fxg3 {[%emt 0:00:02]} 29. fxg3 {[%emt 0:00:01]} Qf2+ {[%emt 0:00:16]} 30. Kh1 {[%emt 0:00:01]} Bxg3 {[%emt 0:07:10]} 31. hxg3 {[%emt 0:01:31]} Qxg3 {[%emt 0:00:01]} 32. Qe2 {[%emt 0:00:42]} (32. Bxe4 $2 Rf1#) 32... Bg4 {[%emt 0:01:39]} 33. Qe3 {[%emt 0:01:55]} ({And not} 33. Qxe4 Qh4+ 34. Kg1 Qf2+ 35. Kh2 Qh4+ 36. Kg1 Qf2+ 37. Kh2 Qh4+ 38. Kg1 $11) ({Not} 33. Qc4+ Kh8 $16) 33... Bf3 {[%emt 0:00:03]} 34. Kg1 {[%emt 0:00:06]} Qg4 {[%emt 0:00:29] [#]} 35. c6 $1 {[%emt 0:01:42] Weighted Error Value: White=0.13 (very precise) /Black=0.60} 1-0

[Event "14th Danzhou Super GM 2023"]
[Site "Danzhou"]
[Date "2023.11.17"]
[Round "4.3"]
[White "Xu, Xiangyu"]
[Black "Tan, Zhongyi"]
[Result "1/2-1/2"]
[ECO "E52"]
[WhiteElo "2623"]
[BlackElo "2513"]
[Annotator "TA"]
[PlyCount "101"]
[EventDate "2023.11.17"]
[EventCountry "CHN"]
[SourceTitle "playchess.com"]
[Source "ChessBase"]
[SourceQuality "1"]
[TimeControl "2700+10"]

{[%evp 17,101,0,0,0,0,-2,0,0,0,0,0,0,15,0,9,0,0,0,0,6,12,-13,0,0,0,0,0,0,0,0,0,0,0,0,0,0,0,0,0,0,0,-15,-18,-31,-20,-65,-20,-56,-56,-62,-48,-77,-81,-104,0,0,0,0,0,0,71,60,109,0,142,0,0,0,0,0,0,0,6,0,0,0,0,0,0,0,0,0,0,0,0,0]} 1. d4 {[%emt 0:00:03]} d5 {[%emt 0:00:02]} 2. c4 {[%emt 0:00:05]} e6 {[%emt 0:00:02]} 3. Nc3 {[%emt 0:00:14]} Bb4 {[%emt 0:00:44]} 4. Nf3 {[%emt 0:00:30]} Nf6 {[%emt 0:00:03]} 5. e3 {[%emt 0:00:09]} O-O {[%emt 0:00:03]} 6. Bd2 {[%emt 0:00:03]} b6 {[%emt 0:00:13]} 7. cxd5 {[%emt 0:00:03]} exd5 {[%emt 0:00:02]} 8. Bd3 {[%emt 0:00:03]} Bd6 {[%emt 0:00:07]} 9. O-O {[%emt 0:01:27]} Bb7 {[%emt 0:00:15]} 10. Qb1 {[%emt 0:00:18] is the new trend. E52: Nimzo-Indian: Rubinstein: 4...0-0 5 Nf3 d5 6 Bd3 b6.} a5 {[%emt 0:01:31]} 11. Nb5 {[%emt 0:00:27]} Be7 {[%emt 0:00:46]} 12. Ne5 {[%emt 0:00:44] [#]} c6 $146 {[%emt 0:00:32][%cal Bc7c6,Bc6c5][%mdl 32]} ({Predecessor:} 12... Na6 13. f3 g6 14. Qd1 Nd7 15. f4 Nxe5 16. fxe5 c5 17. Qg4 Bc6 18. Nc3 Nb4 {½-½ Reede,A (2042)-Pedmanson,H EST-ch 47 email 2016}) 13. Nc3 {[%emt 0:00:03]} c5 {[%emt 0:00:06]} 14. Bb5 {[%emt 0:01:38]} Qd6 {[%emt 0:03:30]} 15. Rd1 {[%emt 0:04:55]} Nc6 {[%emt 0:00:27]} 16. Bxc6 {[%emt 0:05:15]} Bxc6 {[%emt 0:00:02]} 17. Nxc6 {[%emt 0:00:28]} Qxc6 {[%emt 0:00:03]} 18. dxc5 {[%emt 0:00:03]} bxc5 {[%emt 0:00:10]} 19. a4 {[%emt 0:00:03]} Rfd8 {[%emt 0:03:05]} 20. Nb5 {[%emt 0:00:19]} Ne4 {[%emt 0:00:11]} 21. Qc2 {[%emt 0:00:05]} Nxd2 {[%emt 0:02:54]} 22. Rxd2 {[%emt 0:00:04]} Rd7 {[%emt 0:00:18]} 23. b3 {[%emt 0:00:36]} Rad8 {[%emt 0:00:10]} 24. Rad1 {[%emt 0:00:34]} g6 {[%emt 0:00:32]} 25. h3 {[%emt 0:00:05]} Qb6 {[%emt 0:01:47]} 26. Rd3 {[%emt 0:01:26]} Bf6 {[%emt 0:01:01]} 27. e4 {[%emt 0:01:22][%cal Re4d5]} d4 {[%emt 0:00:29]} 28. Na3 {[%emt 0:01:12]} Qc6 {[%emt 0:00:42]} 29. f3 {[%emt 0:01:22]} Be5 {[%emt 0:00:40]} 30. Nc4 {[%emt 0:00:44]} Bc7 {[%emt 0:00:09]} 31. Qd2 {[%emt 0:00:04]} Ra8 {[%emt 0:01:09]} 32. Qg5 {[%emt 0:00:21]} f6 {[%emt 0:00:34]} 33. Qd2 {[%emt 0:00:47]} Re7 {[%emt 0:00:22]} 34. Rc1 {[%emt 0:00:49]} Rae8 {[%emt 0:05:00]} 35. Kf1 {[%emt 0:00:28]} f5 {[%emt 0:01:09]} (35... Qa6 $17 36. Kg1 f5) 36. e5 $1 $11 {[%emt 0:01:12]} Bxe5 {[%emt 0:01:53]} 37. Nxe5 {[%emt 0:00:07][%mdl 64] Remove Defender} Rxe5 {[%emt 0:00:03]} 38. Rxd4 {[%emt 0:00:44]} Qe6 {[%emt 0:05:16]} (38... Re2 $11 {keeps the balance.} 39. Qxa5 Qf6 40. Qxc5 (40. Rd2 $2 Qe7 $19) 40... Qg5 41. Qc4+ (41. Rg4 $2 Qd2 $19) 41... Kf8 42. Qc5+ R8e7) 39. Rd8 $16 {[%emt 0:00:21]} Qxb3 {[%emt 0:00:25] [#]} (39... Rxd8 $14 40. Qxd8+ Kf7) 40. Qxa5 {[%emt 0:01:33]} (40. Rxc5 $1 $16 Qb1+ 41. Kf2) 40... Qa3 {[%emt 0:12:07] [#]} (40... Kf7 $11 {remains equal.}) 41. Rcd1 {[%emt 0:02:28]} ({Only move:} 41. Rxc5 $1 $16 Re2 42. Rxe8+ Rxe8 43. Kg1) 41... Qb4 $36 {[%emt 0:00:18][%mdl 2048] Black fights for an advantage. The position is equal.} ({Don't take} 41... Qe3 42. Rxe8+ Rxe8 43. Qb5 $14) 42. Qb5 {[%emt 0:04:59]} Re1+ {[%emt 0:01:26]} 43. Kf2 {[%emt 0:00:02]} Qxb5 {[%emt 0:00:06]} 44. axb5 {[%emt 0:00:08] aiming for b6.} Rxd1 {[%emt 0:00:03]} 45. Rxd1 {[%emt 0:00:44][%mdl 4096] Endgame Hoping for Rd5. KR-KR} c4 {[%emt 0:00:19]} 46. Re1 {[%emt 0:00:50]} Rc8 {[%emt 0:00:25]} 47. Ke2 {[%emt 0:00:18] Kd2 would be deadly.} Rc5 {[%emt 0:00:18]} 48. Rb1 {[%emt 0:00:27]} c3 {[%emt 0:00:01]} 49. b6 {[%emt 0:00:07] Threatens to win with b7.} c2 {[%emt 0:00:02]} 50. Rc1 {[%emt 0:00:02]} Rb5 {[%emt 0:00:02]} 51. Rxc2 {[%emt 0:00:02] Weighted Error Value: White=0.14 (very precise) /Black=0.16 (very precise)} 1/2-1/2